Cogmind - Beta 16.1 @@@ ROGUE MODE // 2026.03.24 @ 19:22:26 Player: Elxavo Result: Destroyed by G-47 Trooper with Particle Gun Performance ------------- Evolutions (3) 1500 Regions Visited (5) 1000 Robots Destroyed (37) 185 Value Destroyed (1013) 1013 Prototype IDs (0) 0 Alien Tech Used (0) 0 Bonus (500) 500 TOTAL SCORE: 4198 Bonus ------- Entered DSFs 500 Cogmind --------- Core Integrity 0/700 Matter 182/300 Energy 100/100 System Corruption 0% Temperature Cool (9) Movement Core (350) Ox6 Location -7/DSF Parts ------- > --- POWER (1) -------- (None) > --- PROPULSION (4) --- (None) > --- UTILITY (5) ------ Large Storage Unit > --- WEAPON (3) ------- (None) > --- INVENTORY (15) --- Armored Wheel Improved Targeting Computer Reaction Control System System Shield Beam Rifle Assault Rifle Mining Laser Hammer Peak State ------------ > --- POWER ------------ Ion Engine > --- PROPULSION ------- Light Treads Light Treads Light Treads Armored Wheel > --- UTILITY ---------- Large Storage Unit Improved Sensor Array Signal Interpreter Layered Light Armor Plating Shield Generator > --- WEAPON ----------- Ion Cannon Minigun Hammer > --- INVENTORY -------- Light Nuclear Core Aluminum Leg Aluminum Leg VTOL Module VTOL Module Reaction Control System System Shield Beam Rifle Pulse Rifle Assault Rifle Mini Grenade Launcher Mining Laser Hammer [Rating: 26] Favorites ----------- Power Ion Engine Engine Ion Engine Power Core Light Nuclear Core Propulsion Aluminum Leg Treads Light Treads Leg Aluminum Leg Wheel Armored Wheel Flight Unit VTOL Module Utility Large Storage Unit Device Seismic Detector Storage Large Storage Unit Processor Signal Interpreter Protection Medium Armor Plating Weapon Light Assault Rifle Energy Gun Pulse Rifle Energy Cannon Particle Cannon Ballistic Gun Light Assault Rifle Launcher Mini Grenade Launcher Impact Weapon Hammer Build | -11 -10 -9 -8 -7 -7 ------- Run | Yrd Mat Mat Mat Fac DSF Slots Evolved 6 | . . 2 2 2 . Power . | . . . . . . Propulsion 2 | . . . 1 1 . Utility 3 | . . 2 1 . . Weapon 1 | . . . . 1 . Parts Attached 38 | 7 3 9 8 2 9 Power 5 | 1 1 1 1 . 1 Engine 4 | 1 1 1 1 . . Core 1 | . . . . . 1 Reactor . | . . . . . . Propulsion 12 | 2 . 2 3 1 4 Treads 3 | . . . 3 . . Leg 6 | 2 . 2 . . 2 Wheel 1 | . . . . 1 . Hover . | . . . . . . Flight 2 | . . . . . 2 Utility 12 | 2 2 3 2 . 3 Device 4 | 1 . 1 2 . . Storage 3 | 1 2 . . . . Processor 1 | . . 1 . . . Hackware . | . . . . . . Protection 4 | . . 1 . . 3 Artifact . | . . . . . . Weapon 9 | 2 . 3 2 1 1 Energy Gun 1 | . . . . . 1 Energy Cannon 2 | . . 1 1 . . Ballistic Gun 4 | 2 . 1 . 1 . Ballistic Cannon . | . . . . . . Launcher 1 | . . . 1 . . Special Weapon . | . . . . . . Impact Weapon 1 | . . 1 . . . Slashing Weapon . | . . . . . . Piercing Weapon . | . . . . . . Special Melee Weapon . | . . . . . . Unidentified Prototypes . | . . . . . . Parts Lost 24 | . . 4 1 . 19 Power 2 | . . . . . 2 Propulsion 7 | . . 1 . . 6 Utility 9 | . . 2 1 . 6 Weapon 6 | . . 1 . . 5 Highest Loss Streak 15 | . . 3 1 . 15 To Critical Strikes . | . . . . . . Average Backups 11 | 4 8 12 14 13 11 Power 1 | 1 2 2 1 1 . Propulsion 2 | 1 2 3 2 4 2 Utility 1 | . 1 1 1 2 2 Weapon 4 | 1 2 5 7 6 4 Tool/Special . | . . . . . . Unused Backups 9 | . . 1 2 . 6 Power 1 | . . 1 . . . Propulsion . | . . . . . . Utility 3 | . . . . . 3 Weapon 5 | . . . 2 . 3 Tool/Special . | . . . . . . Average Slot Usage (%) 88 | . 99 91 82 90 68 Engine 10 | . 14 11 9 7 1 Treads 6 | . . . 19 23 8 Leg 16 | . 27 22 7 . 1 Device 13 | . 14 17 10 15 9 Storage 10 | . 14 11 9 7 7 Processor 3 | . . 3 9 7 1 Protection 2 | . . 4 . . 5 Energy Cannon 3 | . . 4 6 7 4 Ballistic Gun 12 | . 28 13 . 7 6 Impact Weapon 4 | . . 4 9 7 5 Peak Build Rating 26 | 7 8 14 18 22 26 Average Rating 12 | 5 7 12 15 21 19 On Entrance 11 | . 7 8 13 18 22 Avg Prop Armor Cover (%) 8 | . . . 11 3 7 Naked Turns . | . . . . . . Heaviest Build 43 | 13 28 37 36 39 43 Greatest Support 60 | 20 20 20 60 60 60 Greatest Overweight (x) 12 | 1 1 1 1 . 12 Average Overweight (x) . | . . 1 . . 2 Largest Inventory Capacity 15 | 8 15 15 15 15 15 Average Capacity 14 | 7 14 15 15 15 15 Most Carried 15 | 8 12 15 15 14 14 Average Carried 11 | 4 8 12 14 13 11 Final Capacity 15 | 8 15 15 15 15 15 Final Carried 15 | 7 11 14 15 13 8 Class Distribution -------------------- 82% | Mutant 17% | Scavenger-Mutant Dominant Class ---------------- Mutant | -10/Materials Mutant | -9/Materials Mutant | -8/Materials Mutant | -7/Factory Mutant | -7/DSF Resources | -11 -10 -9 -8 -7 -7 ----------- Run | Yrd Mat Mat Mat Fac DSF Matter Collected 636 | 278 75 137 145 . 1 Remotely . | . . . . . . Salvage Created 1209 | 50 75 240 667 . 177 Parts 87 | 9 6 18 46 . 8 Haulers Intercepted . | . . . . . . Recyclers Shooed . | . . . . . . Parts Field Recycled . | . . . . . . Retrieved Matter . | . . . . . . Parts Self-Destructed . | . . . . . . Prevented . | . . . . . . Parts Restored . | . . . . . . Kills | -11 -10 -9 -8 -7 -7 ------- Run | Yrd Mat Mat Mat Fac DSF Combat Hostiles Destroyed 30 | . 4 8 17 . 1 Guns 10 | . 4 5 . . 1 Cannons 13 | . . 3 10 . . AOE 4 | . . . 4 . . Classes Destroyed 8 | 1 2 1 3 . 1 Worker 1 | . . . 1 . . Builder 3 | . . . 3 . . Tunneler 3 | 3 . . . . . Swarmer 11 | . 3 4 4 . . Grunt 12 | . 1 3 8 . . Sentry 5 | . . 1 4 . . Hunter 1 | . . . 1 . . Heavy 1 | . . . . . 1 Best Kill Streak 7 | 2 3 5 7 . 1 Combat Bots Only 6 | . 3 5 6 . 1 Max Kills in Single Turn 2 | 1 1 1 2 . 1 Gunslinging . | . . . . . . Exploded 2 | . . . 2 . . Melee . | . . . . . . Uniques/NPCs Destroyed . | . . . . . . Combat | -11 -10 -9 -8 -7 -7 -------- Run | Yrd Mat Mat Mat Fac DSF Hostile Shots Fired 411 | . 28 71 97 . 215 Missed 109 | . 6 13 29 . 61 Hits 302 | . 22 58 68 . 154 Projectile 302 | . 22 58 68 . 154 Critical Strikes 7 | . . 1 . . 6 Actively Blocked 1 | . . . . . 1 Damage Taken 4290 | . 190 748 826 . 2526 Core 1169 | . 29 197 231 . 712 Absorbed by Shields 120 | . . . 41 . 79 Redirected to Shielding 52 | . . . . . 52 Regen/Repaired (Parts) 159 | . 24 . 135 . . Core Remaining (%) 74 | 100 88 50 58 . . Volleys Fired 123 | 9 13 33 53 . 15 Largest 2 | 2 2 2 1 . 2 Hottest 88 | 40 40 68 68 . 88 Shots Fired 170 | 18 26 49 53 . 24 Gun 98 | 18 26 42 . . 12 Cannon 63 | . . 7 48 . 8 Launcher 9 | . . . 5 . 4 Special . | . . . . . . Kinetic 97 | 18 26 42 . . 11 Thermal 64 | . . 7 48 . 9 Explosive 9 | . . . 5 . 4 Electromagnetic . | . . . . . . Robot Hit Streak 12 | 5 5 12 8 . 6 Robot Miss Streak 5 | 1 5 4 2 . 3 Penetration Max . | . . . . . . Secondary Targets . | . . . . . . Shots Hit Robots 110 | 13 13 31 40 . 13 Core Hits 66 | 5 5 13 33 . 10 Critical Kills 1 | . . . 1 . . Critical Parts Destroyed 3 | . 1 1 1 . . Critical Strikes 4 | . 1 1 2 . . Meltdown 1 | . . . 1 . . Destroy 2 | . 1 1 . . . Smash 1 | . . . 1 . . Melee Attacks 3 | . . . 3 . . Impact 3 | . . . 3 . . Slashing . | . . . . . . Piercing . | . . . . . . Sneak Attacks . | . . . . . . Combat Hostiles . | . . . . . . Follow-up Attacks . | . . . . . . Damage Inflicted 2088 | 107 106 334 1193 . 348 Guns 562 | 107 106 232 . . 117 Cannons 1009 | . . 102 816 . 91 Explosions 474 | . . . 334 . 140 Melee 43 | . . . 43 . . Ramming . | . . . . . . Kinetic 562 | 107 106 232 . . 117 Thermal 1009 | . . 102 816 . 91 Explosive 474 | . . . 334 . 140 Electromagnetic . | . . . . . . Impact 43 | . . . 43 . . Slashing . | . . . . . . Piercing . | . . . . . . Highest Corruption 1 | . . 1 1 . . Average Corruption 1 | . . 1 1 . . Corruption Purged . | . . . . . . Corruption Blocked . | . . . . . . Effects 1 | . . . 1 . . Message Errors 1 | . . . 1 . . Overload Shots . | . . . . . . Overflow Damage 33 | . . . 33 . . Projectiles . | . . . . . . Explosions . | . . . . . . Melee 33 | . . . 33 . . Knockbacks . | . . . . . . Impact . | . . . . . . Kinetic . | . . . . . . Secondary . | . . . . . . Self-Inflicted Damage . | . . . . . . Shots . | . . . . . . Rammed . | . . . . . . Targets Rammed . | . . . . . . Kicked . | . . . . . . Crushed . | . . . . . . Highest Temperature 219 | . 12 190 219 . 10 Average Temperature 63 | . 7 57 69 . 4 Received Heat Transfer 1512 | . 36 294 315 . 867 Siege Activations . | . . . . . . Martial Activations . | . . . . . . Shielding Activations . | . . . . . . Robots Disrupted . | . . . . . . Combat Hostiles . | . . . . . . Robots Corrupted 2 | . . . 2 . . Combat Hostiles 2 | . . . 2 . . Parts Fried 3 | . . . 3 . . Impact Corruptions 2 | . . . 2 . . Robots Melted 1 | . . . 1 . . Combat Hostiles 1 | . . . 1 . . Parts Melted 2 | . . . 2 . . Heat Transferred 1776 | . . 185 1443 . 148 Parts Sabotaged . | . . . . . . Parts Stolen . | . . . . . . Parts Stripped . | . . . . . . Power Chain Reactions . | . . . . . . Alert | -11 -10 -9 -8 -7 -7 ------- Run | Yrd Mat Mat Mat Fac DSF Maximum Alert Level 1 | . . . 1 . . Low Security (%) 87 | 100 100 100 51 100 100 Level 1 12 | . . . 48 . . Level 2 . | . . . . . . Level 3 . | . . . . . . Level 4 . | . . . . . . Level 5 . | . . . . . . High Security . | . . . . . . Max Security . | . . . . . . Peak Influence 293 | 5 60 74 293 114 93 Initial 114 | . . 7 . 114 72 Average 58 | 1 11 14 175 110 53 Influence Increases 937 | 15 148 194 533 . 47 Destroy 0b10 Robot/C 600 | . 80 160 340 . 20 Destroy 0b10 Robot/NC 50 | 15 . . 20 . 15 Destroy Leader 140 | . 20 30 90 . . Successful Hack 14 | . 3 4 7 . . Destroy Structure 43 | . . . 31 . 12 Partial Spotted 15 | . 15 . . . . Lose Combat Pursuer 75 | . 30 . 45 . . Influence Decreases 937 | 15 129 213 280 149 151 Entered New Map 183 | . . 12 . 139 32 Time Decay 585 | 15 129 161 270 10 . Lost Part 169 | . . 40 10 . 119 Squads Dispatched 5 | . 1 . 3 . 1 Investigation 2 | . 1 . 1 . . Extermination . | . . . . . . Reinforcement 3 | . . . 2 . 1 Assault . | . . . . . . Garrison . | . . . . . . Intercept . | . . . . . . Searches Triggered . | . . . . . . Construction Impeded 1 | . . . 1 . . Haulers Reinforced . | . . . . . . Active Scanning Responses . | . . . . . . Cargo Convoy Interrupts . | . . . . . . Stealth | -11 -10 -9 -8 -7 -7 --------- Run | Yrd Mat Mat Mat Fac DSF Distress Signals 2 | . . . 2 . . Communications Jammed . | . . . . . . Distress Signals . | . . . . . . Times Spotted 43 | . 6 8 21 . 8 Peak Tracking Total 7 | . 3 5 7 . 7 Tactical Retreats 2 | . 1 . 1 . . Traps | -11 -10 -9 -8 -7 -7 ------- Run | Yrd Mat Mat Mat Fac DSF Traps Triggered . | . . . . . . Indirectly . | . . . . . . Trap Hack Attempts . | . . . . . . Triggered . | . . . . . . Disarmed . | . . . . . . Reprogrammed . | . . . . . . Reused . | . . . . . . Traps Extracted . | . . . . . . Installed . | . . . . . . Triggered . | . . . . . . Machines | -11 -10 -9 -8 -7 -7 ---------- Run | Yrd Mat Mat Mat Fac DSF Machines Disabled . | . . . . . . Max in Single Turn . | . . . . . . Machines Repaired . | . . . . . . Machines Dismantled . | . . . . . . Machines Sabotaged . | . . . . . . Overloaded Fab Kills . | . . . . . . Hacking | -11 -10 -9 -8 -7 -7 --------- Run | Yrd Mat Mat Mat Fac DSF Machines Accessed 10 | . 3 3 3 1 . Terminals 7 | . 2 3 1 1 . Fabricators . | . . . . . . Repair Stations 2 | . 1 . 1 . . Recycling Units . | . . . . . . Scanalyzers 1 | . . . 1 . . Garrison Access . | . . . . . . Total Hacks 24 | . 6 8 8 2 . Successful 13 | . 4 2 6 1 . Failed 11 | . 2 6 2 1 . Catastrophic 4 | . 1 2 1 . . Database Lockouts . | . . . . . . Manual 4 | . 2 2 . . . Terminals 16 | . 4 8 2 2 . Fabricators . | . . . . . . Repair Stations 6 | . 2 . 4 . . Recycling Units . | . . . . . . Scanalyzers 2 | . . . 2 . . Garrison Access . | . . . . . . Terminal Hacks 6 | . 2 2 1 1 . Open DSF 1 | . . . . 1 . Locate Traps 1 | . . 1 . . . Zone Layout 4 | . 2 1 1 . . Fabricator Hacks . | . . . . . . Repair Station Hacks 5 | . 2 . 3 . . Scan Component 3 | . 1 . 2 . . Repair 2 | . 1 . 1 . . Recycling Unit Hacks . | . . . . . . Scanalyzer 2 | . . . 2 . . Retrieve Study 2 | . . . 2 . . Garrison Access Hacks . | . . . . . . Unauthorized Hacks . | . . . . . . Terminals . | . . . . . . Fabricators . | . . . . . . Repair Stations . | . . . . . . Recycling Units . | . . . . . . Scanalyzers . | . . . . . . Garrison Access . | . . . . . . Data Cores Recovered . | . . . . . . Used . | . . . . . . Hacking Detections 10 | . 3 3 3 1 . Full Trace Events 3 | . 1 1 1 . . Feedback Events 2 | . . 1 1 . . Corruption 2 | . . 1 1 . . Feedback Blocked . | . . . . . . Robot Schematics Acquired . | . . . . . . Robots Built . | . . . . . . Authchips . | . . . . . . Time . | . . . . . . Total Robot Build Rating . | . . . . . . Part Schematics Acquired . | . . . . . . Parts Built . | . . . . . . Authchips . | . . . . . . Time . | . . . . . . Total Part Build Rating . | . . . . . . Part Studies Acquired 2 | . . . 2 . . Parts Repaired 2 | . 1 . 1 . . Time 52 | . 26 . 26 . . Parts Recycled . | . . . . . . Recycled Matter . | . . . . . . Retrieved Matter . | . . . . . . Retrieved Components . | . . . . . . Parts Scanalyzed . | . . . . . . Part Schematics Acquired . | . . . . . . Parts Damaged . | . . . . . . Bothacking | -11 -10 -9 -8 -7 -7 ------------ Run | Yrd Mat Mat Mat Fac DSF Used RIF Installer . | . . . . . . Robots Hacked . | . . . . . . Non-combat . | . . . . . . Combat . | . . . . . . Robot Hacks Applied . | . . . . . . Relay Couplers Released . | . . . . . . Fabnet Peak Effective % . | . . . . . . Robots Rewired . | . . . . . . Allies Hacked . | . . . . . . Hacks Repelled . | . . . . . . Allies | -11 -10 -9 -8 -7 -7 -------- Run | Yrd Mat Mat Mat Fac DSF Total Allies . | . . . . . . Largest Group . | . . . . . . Highest-Rated Group . | . . . . . . Highest-Rated Ally . | . . . . . . Total Orders . | . . . . . . Ally Attacks . | . . . . . . Total Damage . | . . . . . . Kills . | . . . . . . Allies Corrupted . | . . . . . . Allies Melted . | . . . . . . Intel | -11 -10 -9 -8 -7 -7 ------- Run | Yrd Mat Mat Mat Fac DSF Active Infowar (turns) 2147 | 19 636 745 495 31 221 Sensors 556 | . . . 304 31 221 Terrain 936 | . . 745 191 . . Seismic 1110 | 19 636 455 . . . Robot Analysis Total . | . . . . . . Derelict Logs Recovered . | . . . . . . Drone Launches . | . . . . . . Drone Recoveries . | . . . . . . Exploration | -11 -10 -9 -8 -7 -7 ------------- Run | Yrd Mat Mat Mat Fac DSF Turns Passed 2424 | 131 636 745 604 31 277 Spaces Moved 947 | 81 242 303 235 19 67 Core 25 | 15 . . . . 10 Treads 192 | . . . 146 19 27 Legs 717 | 66 242 303 89 . 17 Wheels . | . . . . . . Hover . | . . . . . . Flight 13 | . . . . . 13 Fastest Speed 50 | 50 120 190 160 160 160 Average Speed 182 | 109 187 190 171 160 268 Slowest Speed 650 | 120 190 190 190 160 650 Overloaded Moves . | . . . . . . Propulsion Burnouts . | . . . . . . Robots Hopped . | . . . . . . Potential Cave-ins . | . . . . . . Cave-ins Triggered . | . . . . . . Exploration Rate (%) 25 | 4 27 24 26 1 71 Regions Visited 5 Branch Regions . Pre-discovered Areas . | . . . . . . Known Exits Taken 3 | . . 1 1 1 . Unknown Exits Taken 2 | 1 1 . . . . Scrap Searched . | . . . . . . Spaces Dug . | . . . . . . Terrain Destroyed 45 | . . . 32 . 13 Melee . | . . . . . . Projectile 1 | . . . . . 1 AOE 44 | . . . 32 . 12 Terrain Rammed . | . . . . . . Walls Destroyed . | . . . . . . Machines Disabled . | . . . . . . Actions | -11 -10 -9 -8 -7 -7 --------- Run | Yrd Mat Mat Mat Fac DSF Total 1482 | 108 402 430 379 20 143 Wait 314 | . 135 73 60 . 46 Move 942 | 80 241 302 234 18 67 Hop . | . . . . . . Pick Up 44 | 12 7 10 11 . 4 Fast Attach 4 | 2 . . 2 . . Attach 25 | 5 1 5 3 2 9 Detach . | . . . . . . Swap 14 | . 3 4 5 . 2 Drop 13 | . 2 3 8 . . Fire 123 | 9 13 33 53 . 15 Melee 3 | . . . 3 . . Ram . | . . . . . . Kick . | . . . . . . Crush . | . . . . . . Escape Stasis . | . . . . . . Rewire . | . . . . . . Trap . | . . . . . . Miscellaneous . | . . . . . . Route ------- -11/Scrapyard -10/Materials -9/Materials -8/Materials -7/Factory -7/DSF History --------- Turn | Location | Event 6 | -11/Scrapyard | Discovered new exit (range 15) 132 | -11/Scrapyard | Entered Materials 318 | -10/Materials | Build established: Mutant 325 | -10/Materials | Discovered new exit (range 15) 487 | -10/Materials | Repaired Aluminum Leg 768 | -10/Materials | Entered another Materials area 768 | -9/Materials | Evolved 2 slots: Utility x2 1254 | -9/Materials | Lost 3 parts (1n2u) 1496 | -9/Materials | Discovered new exit (range 9) 1511 | -9/Materials | Identified exit to Materials 1513 | -9/Materials | Entered another Materials area 1513 | -8/Materials | Evolved 2 slots: Propulsion x1, Utility x1 1575 | -8/Materials | Build established: Scavenger-Mutant 1923 | -8/Materials | Discovered new exit (range 8) 2002 | -8/Materials | Build established: Mutant 2015 | -8/Materials | Repaired Lgt. Treads 2038 | -8/Materials | Identified exit to Factory 2117 | -8/Materials | Entered Factory 2117 | -7/Factory | Evolved 2 slots: Propulsion x1, Weapon x1 2148 | -7/Factory | Identified exit to DSF 2148 | -7/Factory | Entered DSF 2187 | -7/DSF | Additional patrols routed to DSF 2230 | -7/DSF | Lost 4 parts (1p1n1u1w) 2408 | -7/DSF | Core integrity fell below 50% 2418 | -7/DSF | Core integrity fell below 20% 2425 | -7/DSF | Destroyed by G-47 Trooper with Particle Gun Last Messages --------------- 02302_ Lyr. Light Armor Plating destroyed. 02321_ Lgt. Nuclear Core destroyed. 02343_ Lgt. Treads destroyed. 02347_ Hammer+ destroyed. 02349_ Acquired Core Shielding. 02355_ Ion Cannon destroyed. 02356_ Acquired Imp. Medium Armor Plating. 02369_ Imp. Sensor Array destroyed. [Achievement: That Tickles] 02381_ C-30 ARC bursts open, deploying its payload. 02381_ S-27 Virus unfolds itself. 02387_ Aluminum Leg destroyed. 02387_ Minigun destroyed. 02388_ VTOL Module destroyed. 02392_ Aluminum Leg destroyed. 02399_ VTOL Module destroyed. 02401_ S-27 Virus destroyed. 02403_ Imp. Medium Armor Plating destroyed. 02407_ Core Shielding destroyed. 02408_ Pulse Rifle destroyed. Map ----- +----------------------------------------------------+ | ????""""" #??????????????????? | | ????###"" ##!!#! !"##= ###??????????????????? | | ??????### ###!!#!!!""# ##???????????????????? | | ???????## ##########!! !!???????????????????? | | ???????# #??????#!! ^^!!#??????????????????? | | ???????# #??????"!!^^^!!#??????????????????? | | ???????## ###??????#" ####?????????????????? | | ???????# !!#??????# #?????????????????? | | ???????# !!#??????# #?????????????????? | | ???????# !!#??????# = #?????????????????? | | ??????### ########## % ######??????????????? | | ??????#!! ##!!!#!!!## #!!!#?? #??????????? | | ??????#! ##!!!#!!!## ! = ##!!!# ##?????????? | | ??????#! = ?????????? | | ??????#!! % " ????????? | | ??????#!! !=[ "%" ?????????? | | ??????#// ## #!!!## *%##!!!#]]]#??????????? | | ??????#// ## #!!!### ##???????????????????? | | ??????################# ###??????????????????? | | ????????????????????#!! g==#??????????????????? | | ????????????????????#!! g ==#??????????????????? | | ????????????????????#!! s ==#??????????????????? | | ????????????????????###s ###??????????????????? | | ????????????????????#[[s #??????????????????? | | ????????????????????#[[ #??????????????????? | | ????????????????????#[[@ #??????????????????? | | ????????????????????### ###??????????????????? | | ??????????????????????# #????????????????????? | | ?????????????????????? ???????????????????? | | ?????????????????????? ??????????????????? | | ??????????????????????!/// #*?????????????????? | | ??????????????????????!/// #?#????????????????? | | ?????????????????????########??????????????????? | | ???????????????????????????????????????????????? | | ???????????????????????????????????????????????? | | ???????????????????????????????????????????????? | | ???????????????????????????????????????????????? | | ???????????????????????????????????????????????? | | ???????????????????????????????????????????????? | | ???????????????????????????????????????????????? | | | | | | | | | | | | | | | | | | | | | +----------------------------------------------------+ Best States ------------- Heat Dissipation 34 Energy Generation 14 Energy Capacity 265 Matter Stores 300 Matter Capacity 300 Sight Range 16 Robot Scan Range 15 Terrain Scan Range 16 Terrain Scan Density 10 Armor Coverage 225 Core Shielding 20 Evasion (%) 55 Recoil Reduction 3 Item Schematics ----------------- None Robot Schematics ------------------ None Fabricated ------------ Nothing Repaired ---------- Aluminum Leg | 73% | -10/Materials Lgt. Treads | 3% | -8/Materials Studied --------- Mni. Grenade Launcher | -8/Materials | Hacked Hammer | -8/Materials | Hacked Alien Tech Used ----------------- None Achievements -------------- Hammer Time That Tickles Challenges ------------ None Game ------ Seed DiametricDispersionMantle Manual? 0 Play Time 00:42:32 Cumulative 45.7 hours Start 2026.03.24 @ 18:39:07 End 2026.03.24 @ 19:22:26 Sessions 1 Manual Loads 0 Difficulty Rogue Special Mode None Game No. 58 Rogue 58 Adventurer 0 Explorer 0 Win Type - Total 0 Types 0/0/0/0/0/0/0/0/0/0 Lore% 24 Gallery% 19 Achievement% 12 Wizard Run 0 Options --------- Layout 0 ASCII 0 Keyboard 0 Movement Mouse Keybinds 0 Fullscreen 1 Font 18/SmallcapsGlow Map View 76x50 Zoom Use 0% Tactical HUD 1 Map Filters NONE Filters LOW_CONTRAST(13,24,33) Steam 1 RUN: b0935ec1-9321-4e5e-ab2a-2d56219061a4